bitfinex/quotes_ETHUSD_20211001
["timestamp","ask_amount","ask_price","bid_price","bid_amount"]
[1633115367456,0.98915935,3297.5,3297.2,0.003]
[1633115368062,0.18729081,3297.8,3297.2,0.003]
[1633115368458,0.18729081,3297.8,3297.2,2.69981239]
[1633115368659,0.18729081,3297.8,3297.2,4.11461239]
[1633115368858,0.18729081,3297.8,3297.4,1.3267]
[1633115369058,0.003,3298.5,3297.5,1.2502]
[1633115369260,0.003,3298.5,3298.0,4.54525]
[1633115369460,13.35,3298.4,3297.5,0.19529482]
[1633115369660,13.353,3297.5,3297.4,0.003]
[1633115370060,0.003,3297.5,3296.6,0.006]
[1633115370257,0.7215,3297.6,3296.6,0.006]
[1633115370258,0.6232,3297.6,3296.6,0.006]
[1633115370459,0.83043651,3297.5,3297.3,1.5]
[1633115370658,0.16918957,3297.9,3297.3,1.5]
[1633115370659,13.35,3298.4,3297.3,1.5]
[1633115370862,13.495,3298.4,3297.4,0.003]
[1633115371257,0.92477054,3298.3,3297.4,0.003]
[1633115371456,0.145,3298.2,3297.4,0.003]
[1633115371658,0.145,3298.2,3297.4,2.77875713]
[1633115371863,0.25,3298.4,3297.4,2.77875713]
[1633115372061,0.003,3298.5,3297.5,0.003]
[1633115372460,0.003,3298.5,3297.4,0.003]
[1633115372661,14.07980346,3297.5,3297.4,0.003]
[1633115372859,14.98276322,3297.5,3297.4,0.003]
[1633115373059,1.63276322,3297.5,3297.4,0.003]
[1633115373471,2.99196304,3296.5,3296.0,0.003]
[1633115373735,2.99196304,3296.5,3294.0,1.1206]
[1633115373736,2.99196304,3296.5,3295.9,0.003]
[1633115373737,0.02493234,3296.3,3295.9,0.003]
[1633115373932,11.69691893,3295.6,3295.5,0.003]
[1633115374134,0.145,3296.2,3295.4,0.003]
[1633115374531,13.35,3296.0,3294.6,1.89410043]
[1633115374736,13.35,3296.0,3294.1,0.003]
[1633115374737,0.02559667,3294.7,3294.1,0.003]
[1633115374934,0.93061915,3294.2,3293.7,2.67746422]
[1633115375134,0.93061915,3294.2,3293.7,1.956]
[1633115375135,2.01784938,3294.2,3293.7,1.956]
[1633115375532,0.003,3294.5,3293.8,1.59603462]
[1633115375736,0.003,3294.5,3293.8,6.14733462]
[1633115375932,0.003,3294.5,3293.9,1.0392]
[1633115376135,0.003,3294.5,3293.8,6.14733462]
[1633115376333,0.003,3294.5,3293.8,1.59603462]
[1633115376535,0.003,3294.5,3293.7,8.02415]
[1633115376734,1.13382321,3294.4,3293.7,1.1436]
[1633115377133,0.98882321,3294.4,3293.7,1.1436]
[1633115377533,0.98882321,3294.4,3293.9,1.0959]
[1633115377932,0.36685752,3294.4,3294.0,4.50063]
[1633115378133,0.003,3294.5,3294.4,4.97660504]
[1633115378334,0.003,3295.5,3294.5,14.6045]
[1633115378533,0.003,3295.5,3294.6,2.97527937]
[1633115378737,0.003,3295.5,3294.7,1.3034]
[1633115378933,0.91970282,3294.9,3294.5,0.003]
[1633115379136,1.65671343,3294.9,3294.5,0.003]
[1633115379335,0.91970282,3294.9,3294.5,0.003]
[1633115379536,0.003,3295.5,3294.5,0.003]
[1633115379735,0.003,3295.5,3294.4,0.64941504]
[1633115379934,0.003,3295.0,3294.4,0.64941504]
[1633115380138,0.003,3296.0,3294.4,0.64941504]
[1633115380139,0.003,3296.0,3295.1,5.7]
[1633115380336,0.003,3296.0,3295.5,0.79016039]
[1633115380535,0.87786082,3295.9,3295.5,0.79016039]
[1633115381736,0.87786082,3295.9,3295.8,12.49888]
[1633115381939,0.003,3296.0,3295.9,13.61461657]
[1633115382335,0.003,3296.0,3295.9,0.26461657]
[1633115383135,0.003,3296.0,3295.9,0.10974657]
[1633115383340,0.003,3297.0,3296.0,13.34191]
[1633115383540,0.003,3297.0,3296.5,1.59167395]
[1633115383738,0.003,3297.0,3296.6,0.79223263]
[1633115383940,0.003,3297.0,3296.6,1.96433263]
[1633115384137,0.003,3297.0,3296.6,1.1721]
[1633115384336,0.003,3297.0,3296.7,4.54616]
[1633115384537,0.003,3297.0,3296.7,4.49311]
[1633115384736,0.003,3297.0,3296.7,7.21852965]
[1633115384940,0.003,3297.0,3296.7,4.49311]
[1633115385143,0.003,3297.0,3296.5,11.41072395]
[1633115385144,0.88584317,3296.9,3296.5,1.59167395]
[1633115385339,0.88584317,3296.9,3296.5,1.58895395]
[1633115385942,0.88584317,3296.9,3296.6,0.09646087]
[1633115386344,0.71416284,3296.8,3296.6,0.09646087]
[1633115386744,0.71416284,3296.8,3296.0,0.003]
[1633115386745,1.58895395,3296.5,3296.0,0.003]
[1633115387042,0.02446483,3296.2,3296.0,0.003]
[1633115387243,15.34255905,3296.1,3296.0,0.003]
[1633115387443,1.58895395,3296.5,3296.0,0.003]
[1633115388242,1.58895395,3296.5,3296.0,0.00408623]
[1633115388442,1.90728624,3296.4,3296.0,0.00408623]
[1633115388942,0.23768323,3296.3,3296.0,0.00408623]
[1633115390141,0.09681228,3296.3,3296.0,0.00408623]
[1633115390341,9.32892632,3296.1,3296.0,1.50408623]
[1633115390942,0.87892632,3296.1,3296.0,1.50408623]
[1633115391142,0.91303367,3296.4,3296.0,1.62296672]
[1633115391943,0.91303367,3296.4,3296.0,6.17179672]
[1633115392347,0.91303367,3296.4,3296.0,1.62296672]
[1633115392643,0.90245807,3296.4,3296.0,1.62296672]
[1633115392844,0.90245807,3296.4,3296.0,6.17180672]
[1633115393242,0.90245807,3296.4,3296.0,1.62296672]
[1633115393444,1.58895395,3296.5,3296.0,1.62296672]
[1633115393743,1.58895395,3296.5,3296.1,2.84465462]
[1633115393945,1.58895395,3296.5,3296.2,0.72810346]
[1633115394143,0.16727223,3296.4,3296.2,0.67810346]
[1633115394347,0.16727223,3296.4,3296.2,5.22640346]
[1633115394542,0.82622618,3296.5,3296.2,5.22640346]
[1633115395142,0.82622618,3296.5,3296.2,4.5483]
[1633115395844,0.82622618,3296.5,3296.0,1.50408623]
[1633115395845,1.19079565,3296.4,3296.0,1.50408623]
[1633115396044,11.4514869,3296.1,3296.0,1.50408623]
[1633115396244,1.19079565,3296.4,3296.0,1.50408623]
[1633115397244,0.87577747,3296.2,3296.0,1.50408623]
[1633115397645,1.02077747,3296.2,3296.0,1.50408623]
[1633115398244,14.75753913,3296.0,3295.9,4.657e-05]
[1633115398445,14.90253913,3296.0,3295.9,4.657e-05]
[1633115399244,17.27767087,3296.0,3295.9,4.657e-05]
[1633115400045,18.33685343,3296.0,3295.9,4.657e-05]
[1633115400246,17.30297421,3296.0,3295.9,4.657e-05]
[1633115400446,17.10497421,3296.0,3295.9,4.657e-05]
[1633115400846,3.75497421,3296.0,3295.9,4.657e-05]
[1633115401049,3.72967087,3296.0,3295.9,4.657e-05]
[1633115402048,3.72967087,3296.0,3295.9,1.50004657]
[1633115402252,3.58467087,3296.0,3295.9,4.34246381]
[1633115402448,1.20953913,3296.0,3295.9,4.3551325]
[1633115402647,1.20953913,3296.0,3295.9,1.50004657]
[1633115403046,1.10953913,3296.0,3295.9,1.50004657]
[1633115403451,11.95,3295.9,3294.8,0.006]
[1633115403650,1.13482254,3296.0,3294.8,2.7997474]
[1633115403850,1.13482254,3296.0,3295.1,0.003]
[1633115404252,0.90969199,3295.4,3295.1,0.003]
[1633115404450,0.80958377,3295.4,3295.1,0.003]
[1633115405250,1.13482254,3296.0,3295.1,0.003]
[1633115405451,1.13482254,3296.0,3295.1,4.55308]
[1633115405452,1.10953913,3296.0,3295.1,4.55308]
[1633115405651,1.10953913,3296.0,3294.7,8.8627809]
[1633115405652,1.10953913,3296.0,3294.8,0.006]
[1633115405854,1.13515391,3296.0,3295.2,0.003]
[1633115406052,1.17114768,3295.1,3294.7,6.0667]
[1633115406253,1.13815391,3296.0,3294.9,0.70813958]
[1633115406452,0.003,3295.5,3294.9,0.70813958]
[1633115406651,0.003,3295.9,3294.7,6.0667]
[1633115407051,0.003,3295.8,3294.7,6.0667]
[1633115407252,0.003,3295.8,3294.8,2.7954291]
[1633115407459,0.003,3295.7,3294.8,2.7954291]
[1633115407654,0.91955837,3295.5,3294.9,0.99272084]
[1633115407852,0.003,3295.6,3294.9,0.99272084]
[1633115408053,0.003,3295.5,3295.3,4.54995]
[1633115408653,0.003,3295.5,3295.4,0.79714239]
[1633115409654,0.003,3295.5,3295.2,6.06624]
[1633115409655,1.19278903,3295.5,3295.2,6.06624]
[1633115410655,1.19278903,3295.5,3295.2,7.06271604]
[1633115410856,1.19278903,3295.5,3295.2,6.06624]
[1633115411455,1.19278903,3295.5,3295.2,7.56624]
[1633115413122,0.75951126,3295.3,3295.2,1.5]
[1633115414321,0.67142987,3295.3,3295.2,1.5]
[1633115414521,1.19278903,3295.5,3295.2,1.5]
[1633115415527,0.62377382,3294.7,3294.5,1.0]
[1633115415735,1.62374752,3294.7,3294.5,1.0]
[1633115415934,1.62374752,3294.7,3294.6,2.46]
[1633115416333,2.56856689,3294.7,3294.6,2.46]
[1633115416532,2.56856689,3294.7,3294.5,1.003]
[1633115416533,13.35,3294.6,3294.5,0.003]
[1633115416736,7.12097689,3294.7,3294.5,0.003]
[1633115416931,11.0601862,3294.6,3294.1,0.003]
[1633115417132,1.14785319,3294.2,3294.1,0.003]
[1633115417333,1.14785319,3294.2,3294.0,9.003]
[1633115417334,13.35,3294.1,3294.0,6.1168371]
[1633115417533,13.35,3294.1,3293.4,2.74]
[1633115417534,15.96968906,3294.0,3293.4,2.74]
[1633115417839,1.83311665,3293.7,3293.5,2.463]
[1633115418035,10.745,3293.6,3293.5,2.463]
[1633115418233,11.77310343,3293.6,3293.5,2.463]
[1633115418434,1.17310343,3293.6,3293.5,2.463]
[1633115418638,15.45042517,3293.6,3293.5,2.42788101]
[1633115418839,2.10042517,3293.6,3293.5,2.42788101]
[1633115421236,0.145,3293.6,3293.5,2.37788101]
[1633115421436,4.98665917,3294.0,3293.6,12.85]
[1633115421651,4.98665917,3294.0,3293.7,3.10162779]
[1633115421837,4.98665917,3294.0,3293.9,0.02520695]
[1633115422037,4.98665917,3294.0,3293.9,12.2]
[1633115422237,4.98665917,3294.0,3293.9,0.38131958]
[1633115422836,4.98665917,3294.0,3293.7,2.46]
[1633115423235,14.66765476,3293.8,3293.7,2.46]
[1633115423438,14.66765476,3293.8,3292.9,0.003]
[1633115423439,2.05263013,3293.5,3292.9,0.003]
[1633115423638,2.05263013,3293.5,3292.6,0.3868104]
[1633115423639,13.22410583,3293.0,3292.6,0.3868104]
[1633115423837,13.22410583,3293.0,3292.6,0.3838104]
[1633115423838,0.145,3292.9,3292.6,0.3838104]
[1633115424037,0.145,3292.9,3292.7,0.38708521]
[1633115424235,0.145,3292.9,3292.7,0.003]
[1633115424436,0.145,3292.9,3291.7,0.8970577]
[1633115424437,15.18627205,3292.8,3291.7,0.8970577]
[1633115424638,1.96612731,3292.8,3291.8,0.38435153]
[1633115424836,3.03716,3292.6,3291.9,0.3345018]
[1633115425037,0.145,3292.5,3291.9,0.3435018]
[1633115425238,0.145,3292.5,3291.5,0.003]
[1633115425239,0.1696681,3292.5,3292.0,0.009]
[1633115425642,0.145,3292.5,3292.0,0.80393353]
[1633115425836,0.145,3292.5,3291.6,2.83119741]
[1633115426036,0.145,3292.5,3292.1,0.006]
[1633115426239,0.145,3292.5,3291.7,0.009]
[1633115426437,4.55576,3292.4,3291.7,0.2128224]
[1633115426637,4.70076,3292.4,3291.7,0.2128224]
[1633115426841,0.73970434,3292.1,3291.8,0.009]
[1633115427437,2.29535784,3292.1,3291.8,0.009]
[1633115428042,0.145,3292.0,3291.8,0.009]
[1633115430241,0.095,3292.0,3291.8,0.009]
[1633115430844,0.095,3292.0,3291.7,0.4394874]
[1633115431641,0.095,3292.0,3291.7,0.44045417]
[1633115432041,0.095,3292.0,3291.7,0.23743177]
[1633115432242,0.08295271,3291.9,3291.7,0.23743177]
[1633115433243,13.495,3291.8,3291.7,0.23743177]
[1633115433644,0.145,3291.8,3291.7,0.23743177]
[1633115434243,6.395,3291.8,3291.7,0.23743177]
[1633115434545,6.395,3291.8,3291.7,0.236465]
[1633115434846,3.0381153,3291.5,3291.3,0.003]
[1633115435046,2.80068823,3291.6,3290.0,2.84427165]
[1633115435047,0.145,3291.4,3290.0,2.84427165]
[1633115435248,4.55868,3290.6,3290.0,0.006]
[1633115435447,3.03225828,3290.6,3290.1,0.006]
[1633115435644,3.18405,3290.5,3290.1,0.003]
[1633115435849,3.18405,3290.5,3289.9,0.009]
[1633115436048,3.18405,3290.5,3288.8,0.015]
[1633115436246,1.00953937,3289.8,3289.3,1.07346705]
[1633115436447,1.00953937,3289.8,3288.8,0.015]
[1633115436448,0.145,3289.7,3288.8,0.015]
[1633115436656,3.03989,3289.6,3288.8,0.003]
[1633115436846,0.145,3289.5,3289.4,0.012]
[1633115437245,11.1579,3290.6,3289.2,0.02466036]
[1633115437246,0.145,3290.3,3289.2,0.02466036]
[1633115437444,0.145,3290.3,3289.4,0.2043002]
[1633115437748,0.0823668,3289.5,3289.4,0.2043002]
[1633115438351,0.0823668,3289.5,3289.4,0.2163002]
[1633115438950,1.3478,3291.8,3290.0,3.1841728]
[1633115438951,0.145,3291.1,3290.0,3.1841728]
[1633115439155,23.75657795,3291.7,3290.0,3.1841728]
[1633115439156,11.86967795,3291.7,3290.1,3.43106991]
[1633115439352,0.04007795,3291.7,3290.5,4.55601]
[1633115439553,0.04007795,3291.7,3290.9,0.02500499]
[1633115439748,0.85794737,3291.7,3291.0,0.90498348]
[1633115439948,0.85794737,3291.7,3291.0,0.003]
[1633115440749,1.7431279,3291.7,3291.0,0.003]
[1633115440948,0.04007795,3291.7,3290.8,0.86846489]
[1633115441157,0.04007795,3291.7,3290.9,2.85841507]
[1633115441550,0.04007795,3291.7,3291.0,0.003]
[1633115442152,0.04007795,3291.7,3291.0,0.0008595]
[1633115442153,0.061424,3291.3,3291.0,0.0008595]
[1633115442351,0.061424,3291.3,3290.0,3.1871728]
[1633115442352,3.0382802,3290.9,3290.0,3.1871728]
[1633115442551,4.55817,3290.7,3290.0,3.1871728]
[1633115442750,4.70317,3290.7,3290.0,3.1871728]
[1633115442952,0.82323327,3290.2,3290.0,3.1871728]
[1633115443354,0.04140341,3290.6,3290.0,3.1871728]
[1633115443555,0.04140341,3290.6,3290.0,3.0371728]
[1633115444351,0.04140341,3290.6,3290.1,0.76474592]
[1633115444552,3.03877,3290.4,3290.0,3.0371728]
[1633115445552,0.73120317,3290.2,3290.0,3.0371728]
[1633115446153,3.1837766,3290.3,3290.0,3.0371728]
[1633115447255,0.04140341,3290.6,3290.1,3.77477014]
[1633115447955,0.04140341,3290.6,3290.1,0.83920178]
[1633115448152,0.04140341,3290.6,3290.4,1.04575544]
[1633115448355,0.003,3291.0,3290.5,13.3]
[1633115448761,0.003,3291.0,3290.6,3.89894562]
[1633115448966,0.003,3291.0,3290.6,2.76694562]
[1633115449162,0.003,3291.0,3290.9,14.05246731]
[1633115449363,0.003,3291.0,3290.9,1.63770468]
[1633115449560,0.003,3291.0,3290.9,2.48294405]
[1633115449761,0.003,3291.0,3290.9,2.50759139]
[1633115449962,0.003,3291.0,3290.9,0.90988471]
[1633115450160,0.003,3291.0,3290.9,5.80988471]
[1633115450561,0.003,3291.0,3290.9,6.73274478]
[1633115450961,0.003,3291.5,3291.3,1.51127771]
[1633115451162,0.003,3291.5,3291.3,2.99457771]
[1633115451626,0.003,3291.5,3291.4,5.56381266]
[1633115451827,0.003,3291.5,3290.4,6.09822271]
[1633115452721,0.003,3291.5,3291.0,4.556]
[1633115452922,0.003,3291.5,3291.0,7.31866279]
[1633115453121,0.003,3291.5,3291.0,4.556]
[1633115453722,0.003,3291.5,3291.3,4.55519]
[1633115453922,0.003,3291.5,3291.4,0.94730415]
[1633115454325,0.04007795,3291.7,3291.4,5.53206767]
[1633115454524,7.795e-05,3291.7,3291.6,13.32594839]
[1633115454928,7.795e-05,3291.7,3291.6,1.4049834]
[1633115455524,0.00227795,3292.0,3291.8,3.03603]
[1633115455925,0.00227795,3292.0,3291.9,9.35392]
[1633115456124,0.00227795,3292.0,3291.9,4.55392]
[1633115458628,0.00227795,3292.0,3291.9,6.38817171]
[1633115459025,0.00227795,3292.0,3291.9,10.93666116]
[1633115459026,7.795e-05,3292.0,3291.9,10.93666116]
[1633115459234,0.003,3293.0,3291.9,10.93666116]
[1633115459235,0.003,3293.0,3292.0,14.7221]
[1633115459429,0.003,3293.0,3292.7,0.02475251]
[1633115459629,0.003,3293.0,3292.8,1.31190748]
[1633115459827,2.05563013,3293.5,3292.9,3.1591679]
[1633115460030,2.05563013,3293.5,3292.5,0.003]
[1633115460031,0.76270605,3293.3,3292.5,0.003]
[1633115460428,0.76270605,3293.3,3292.3,0.33680411]
[1633115460638,0.76270605,3293.3,3292.3,0.003]
[1633115460826,0.76270605,3293.3,3292.4,0.003]
[1633115461027,0.88005125,3292.6,3292.3,1.09297038]
[1633115461428,0.88005125,3292.6,3292.1,6.0714]
[1633115461429,0.88005125,3292.6,3292.4,0.003]
[1633115461834,0.88005125,3292.6,3292.2,0.003]
[1633115462029,0.88005125,3292.6,3292.0,0.006]
[1633115462230,0.145,3292.9,3292.0,0.006]
[1633115462430,0.145,3292.9,3292.0,0.90091938]
[1633115462630,3.03605,3293.3,3292.1,0.33768445]
[1633115462830,3.03605,3293.3,3292.2,0.33745549]
[1633115462831,0.145,3293.2,3292.2,0.33745549]
[1633115463030,0.145,3293.2,3292.3,0.33742568]
[1633115463229,0.145,3293.2,3292.3,0.003]
[1633115463434,0.97339715,3292.9,3292.4,0.003]
[1633115463632,0.97339715,3292.9,3292.5,1.16867626]
[1633115464030,0.97339715,3292.9,3292.5,0.003]
[1633115464437,0.97339715,3292.9,3292.3,6.06488883]
[1633115464633,0.97339715,3292.9,3292.4,0.003]
[1633115464832,0.97339715,3292.9,3292.6,0.24439071]
[1633115465031,1.13843117,3292.8,3292.0,0.006]
[1633115465233,0.83088101,3292.3,3292.2,0.003]
[1633115465431,1.13843117,3292.8,3291.9,0.006]
[1633115465632,0.0419775,3292.9,3292.0,0.33855023]
[1633115466032,3.036726,3292.7,3292.1,0.003]
[1633115466434,3.036726,3292.7,3291.0,0.012]
[1633115466633,3.036726,3292.7,3291.6,1.07751303]
[1633115466835,3.036726,3292.7,3291.7,0.33896051]
[1633115467043,0.90672236,3292.1,3291.7,0.34496051]
[1633115467233,0.90672236,3292.1,3291.8,0.006]
[1633115467434,0.145,3292.8,3291.8,0.34497018]
[1633115467635,0.145,3292.8,3291.9,0.3388532]
[1633115467833,0.145,3292.8,3291.9,0.3448532]
[1633115468032,0.145,3292.8,3292.0,0.33811469]
[1633115468235,0.0419775,3292.9,3292.4,1.17306608]
[1633115468434,0.0419775,3292.9,3292.5,0.8921328]
[1633115468633,0.0419775,3292.9,3292.6,0.33212257]
[1633115469032,0.0419775,3292.9,3292.5,0.003]
[1633115469232,0.0419775,3292.9,3292.6,4.55333]
[1633115469834,0.0419775,3292.9,3292.7,3.12320885]
[1633115470037,2.05563013,3293.5,3292.8,16.7869747]
[1633115470233,2.05563013,3293.5,3292.9,0.3319081]
[1633115470441,2.75177221,3294.0,3293.5,4.10826026]
[1633115470647,2.75177221,3294.0,3293.6,3.86064991]
[1633115470834,2.75177221,3294.0,3293.7,2.3496444]
[1633115471034,2.75177221,3294.0,3293.8,3.3674827]
[1633115471234,2.75177221,3294.0,3293.9,16.48685133]
[1633115471434,2.75177221,3294.0,3293.9,3.95305778]
[1633115471637,2.75177221,3294.0,3293.9,1.09721051]
[1633115472243,0.003,3294.5,3294.1,3.03341]
[1633115472436,0.003,3294.5,3294.2,3.281565]
[1633115472636,0.003,3294.5,3294.3,0.33057496]
[1633115472837,0.003,3294.5,3294.3,4.88054496]
[1633115473037,0.003,3294.5,3294.4,1.50686256]
[1633115473636,0.003,3294.5,3294.4,4.22412037]
[1633115474236,0.003,3295.0,3294.5,13.3]
[1633115474435,0.003,3295.0,3294.4,1.50686256]
[1633115474436,0.003,3295.0,3294.6,2.74801256]
[1633115474639,0.003,3295.0,3294.7,0.90519812]
[1633115474841,0.003,3295.0,3294.9,13.91867079]
[1633115475037,0.003,3295.0,3294.9,1.19321847]
[1633115475238,0.003,3295.0,3294.9,4.2343031]
[1633115475637,0.0022,3295.0,3294.9,4.2343031]
[1633115475840,0.0022,3295.0,3294.9,4.49895518]
[1633115476237,0.003,3295.5,3295.0,13.3]
[1633115476442,0.003,3295.5,3295.2,0.02524345]
[1633115476637,0.003,3295.5,3295.3,0.46852142]
[1633115476837,0.003,3295.5,3295.4,14.6136947]
[1633115477036,0.003,3295.5,3295.4,1.3136947]
[1633115477238,0.003,3296.0,3295.5,13.3]
[1633115477442,0.003,3296.0,3295.6,3.15494103]
[1633115477638,0.003,3296.0,3295.7,0.46801892]
[1633115477939,0.92415942,3296.0,3295.5,2.80505258]
[1633115478139,0.003,3296.0,3295.6,0.32336021]
[1633115478341,0.003,3297.0,3295.9,13.3]
[1633115478541,1.2450668,3296.5,3296.1,3.03133]
[1633115478742,0.003,3297.5,3296.3,13.3]
[1633115478942,0.003,3297.5,3296.9,0.02481414]
[1633115479143,0.003,3297.5,3297.0,1.05628646]
[1633115479339,0.003,3297.5,3297.1,2.9815357]
[1633115479539,0.003,3297.5,3297.2,4.54609]
[1633115479740,0.003,3297.5,3297.3,2.76282528]
[1633115479942,2.46,3297.9,3297.5,11.8]
[1633115480142,2.0,3298.4,3297.6,3.09914684]
[1633115480143,2.46,3298.2,3297.6,3.09914684]
[1633115480340,0.006,3298.8,3298.5,2.0]
[1633115480545,0.006,3298.8,3298.6,7.92856635]
[1633115480741,0.006,3298.8,3298.7,2.92384188]
[1633115480941,3.43146141,3298.8,3298.6,4.54377]
[1633115481341,3.43146141,3298.8,3298.7,0.27416668]
[1633115481540,0.01603139,3298.7,3298.6,4.54377]
[1633115481741,0.01603139,3298.7,3298.5,2.0]
[1633115482743,0.00554358,3298.7,3298.5,8.05975]
[1633115483545,0.93560427,3298.6,3298.5,2.0]
[1633115483943,0.00554358,3298.7,3298.5,2.0]
[1633115485944,0.91897392,3298.7,3298.5,2.0]
[1633115486144,0.00554358,3298.7,3298.5,8.05979]
[1633115486745,0.006,3298.8,3298.5,8.05979]
[1633115486945,0.006,3298.8,3298.6,0.27946003]
[1633115487144,0.006,3298.8,3298.7,14.24378807]
[1633115487346,0.006,3299.2,3298.8,19.35798]
[1633115487544,0.006,3299.2,3298.9,16.36464145]
[1633115487751,0.006,3299.6,3299.4,14.4329824]
[1633115487945,0.006,3299.6,3299.5,10.0]
[1633115488145,0.006,3299.6,3299.5,0.79927602]
[1633115488348,0.006,3299.6,3299.4,12.05908558]
[1633115488546,0.006,3299.6,3299.4,6.3184]
[1633115488747,0.006,3299.6,3299.4,1.6303]
[1633115488945,0.006,3299.6,3299.4,0.009]
[1633115489548,0.006,3299.6,3299.4,4.55305]
[1633115489750,0.82485307,3299.8,3299.4,4.55305]
[1633115490048,0.006,3300.2,3299.4,4.55305]
[1633115490252,0.006,3300.2,3299.4,0.009]
[1633115490852,1.06458328,3299.9,3299.4,0.009]
[1633115491049,0.006,3299.9,3299.4,0.009]
[1633115491449,0.006,3299.9,3299.4,2.9795667]
[1633115491849,0.006,3299.9,3299.4,3.1245667]
[1633115492049,0.006,3299.9,3299.5,1.15238074]
[1633115492250,0.006,3299.9,3299.6,2.81229261]
[1633115492650,0.006,3299.9,3299.8,14.22409367]
[1633115492854,0.006,3300.2,3299.9,13.3]
[1633115493048,0.006,3300.2,3299.9,0.145]
[1633115493251,0.003,3300.5,3300.1,13.3]
[1633115493450,0.003,3300.5,3300.2,2.96133883]
[1633115493653,0.003,3300.5,3300.2,1.9589]
[1633115493654,0.83699016,3300.5,3300.2,1.9589]
[1633115493851,0.003,3300.5,3300.2,1.9589]
[1633115494050,0.003,3300.5,3300.3,4.54144]
[1633115494249,0.003,3300.5,3300.3,4.68644]
[1633115494850,0.003,3300.5,3300.3,5.46039475]
[1633115495051,0.003,3300.5,3300.3,4.68644]
[1633115495457,0.003,3300.5,3300.3,7.4075748]
[1633115495655,0.003,3300.5,3300.3,4.68644]
[1633115496054,0.003,3300.5,3300.3,4.54144]
[1633115497855,0.003,3300.5,3300.4,0.27885048]
[1633115499658,0.003,3300.5,3300.4,1.41075048]
[1633115500259,0.003,3300.5,3300.4,1.33514723]
[1633115501059,0.003,3300.5,3300.4,0.20324723]
[1633115503861,0.003,3300.5,3300.3,4.54144]
[1633115503862,0.04875126,3300.5,3300.3,4.54144]
[1633115504861,0.04875126,3300.5,3299.7,1.3558]
[1633115504862,13.3,3300.3,3299.5,0.003]
[1633115505061,0.02574125,3299.8,3299.5,0.003]
[1633115505660,0.04875126,3300.5,3299.5,0.003]
[1633115505866,0.04875126,3300.5,3299.5,2.98699545]
[1633115506063,0.04875126,3300.5,3300.0,4.54352]
[1633115506261,0.04875126,3300.5,3300.1,3.08614617]
[1633115506661,0.04875126,3300.5,3300.3,1.16402723]
[1633115506860,0.04875126,3300.5,3300.3,0.82032964]
[1633115507060,0.04875126,3300.5,3300.3,4.54261]
[1633115507262,0.00475126,3300.6,3300.3,4.54261]
[1633115508664,0.68559628,3300.9,3300.3,4.54261]
[1633115508865,0.68559628,3300.9,3300.4,0.26338712]
[1633115509065,0.68559628,3300.9,3300.6,4.54302]
[1633115509264,0.009,3301.0,3300.6,4.54302]
[1633115509464,0.02238696,3300.9,3300.6,4.54302]
[1633115511469,1.00770367,3300.9,3300.6,4.54302]
[1633115512334,1.00770367,3300.9,3300.2,6.05708]
[1633115513236,1.00770367,3300.9,3300.2,6.00708]
[1633115513431,3.029,3300.7,3300.3,2.69551724]
[1633115513638,3.029,3300.7,3300.1,2.83160502]
[1633115513834,3.029,3300.7,3300.0,0.83586223]
[1633115514234,3.029,3300.7,3300.3,1.08882471]
[1633115514436,0.00093228,3300.6,3300.3,1.08882471]
[1633115514635,0.00093228,3300.6,3300.1,0.26342005]
[1633115515235,0.02232642,3300.5,3300.3,4.54329]
[1633115517037,0.02232642,3300.5,3300.3,3.16329]
[1633115519442,0.02232642,3300.5,3300.3,4.37347319]
[1633115519842,0.00093228,3300.6,3300.4,0.26338712]
[1633115520648,0.0223387,3300.5,3300.2,6.05735]
[1633115520849,0.0223387,3300.5,3300.3,4.54252]
[1633115522047,0.0223387,3300.5,3300.4,7.85899128]
[1633115522648,0.0223387,3300.5,3300.4,13.02803073]
[1633115522853,0.006,3301.2,3300.4,13.02803073]
[1633115522854,0.006,3301.7,3301.2,3.03588]
[1633115523049,0.006,3301.7,3301.2,12.34886294]
[1633115523249,0.006,3301.7,3301.2,14.09991634]
[1633115523449,0.006,3301.7,3301.2,11.0977434]
[1633115523652,0.006,3301.7,3301.3,13.3]
[1633115523849,0.006,3301.7,3301.3,0.145]
[1633115524848,0.00698175,3301.4,3301.3,1.439]
[1633115525250,0.00698175,3301.4,3301.3,4.15650815]
[1633115525453,0.006,3301.7,3301.4,12.8]
[1633115525652,0.001,3302.3,3301.6,9.65]
[1633115525851,0.001,3302.3,3302.1,0.73063497]
[1633115526051,0.001,3302.3,3302.2,0.86466627]
[1633115526254,0.001,3302.3,3302.2,4.95521993]
[1633115526452,0.006,3302.7,3302.2,9.64012993]
[1633115526657,0.006,3302.7,3302.3,16.47828259]
[1633115526853,0.006,3302.7,3302.4,0.145]
[1633115527054,0.006,3303.2,3302.5,13.3]
[1633115527254,0.006,3303.2,3302.7,14.83103589]
[1633115527451,0.006,3303.2,3302.7,16.53523589]
[1633115527655,0.0045122,3303.5,3302.9,13.3]
[1633115527856,0.0045122,3303.5,3303.0,3.18273037]
[1633115527857,2.4645122,3303.5,3303.0,3.18273037]
[1633115528056,0.006,3305.2,3303.6,13.3]
[1633115528259,7.37,3304.6,3304.1,0.0245627]
[1633115528454,2.0,3304.6,3304.4,1.3796]
[1633115528657,0.006,3305.2,3305.0,7.7]
[1633115528858,13.36998811,3305.6,3305.1,17.83989841]
[1633115529053,0.006,3305.6,3305.2,13.3]
[1633115529261,0.006,3306.2,3305.8,13.3]
[1633115529457,0.006,3306.2,3306.0,6.62593561]
[1633115529653,0.006,3306.2,3306.0,9.93123878]
[1633115529854,0.006,3306.9,3306.0,0.17093561]